[Event "Early-Titled-Tuesday-Blitz-September-12-2023"]
[Site "Chess.com"]
[Date "2023.09.12"]
[Round "8"]
[White "campochess"]
[Black "RamonManon0g"]
[Result "0-1"]
[WhiteElo "2117"]
[BlackElo "2300"]
[TimeControl "180+1"]
[EndTime "9:28:41 PDT"]
[Termination "RamonManon0g won by checkmate"]

1. d4 {[%clk 0:02:51.7]} 1... Nf6 {[%clk 0:02:57.6]} 2. Bg5 {[%clk 0:02:51.4]}
2... e6 {[%clk 0:02:57.7]} 3. e4 {[%clk 0:02:50.7]} 3... h6 {[%clk 0:02:57.5]}
4. Bxf6 {[%clk 0:02:49.6]} 4... Qxf6 {[%clk 0:02:58.4]} 5. Nf3 {[%clk
0:02:49.5]} 5... c5 {[%clk 0:02:55.2]} 6. c3 {[%clk 0:02:48.7]} 6... cxd4 {[%clk
0:02:55.2]} 7. Nxd4 {[%clk 0:02:46.2]} 7... Nc6 {[%clk 0:02:55]} 8. Nxc6 {[%clk
0:02:45.9]} 8... bxc6 {[%clk 0:02:55.1]} 9. Nd2 {[%clk 0:02:45.1]} 9... Rb8
{[%clk 0:02:55.2]} 10. Nb3 {[%clk 0:02:41.9]} 10... Qf4 {[%clk 0:02:49]} 11. Qf3
{[%clk 0:02:40.1]} 11... Qxf3 {[%clk 0:02:47.8]} 12. gxf3 {[%clk 0:02:40.2]}
12... a5 {[%clk 0:02:46.8]} 13. O-O-O {[%clk 0:02:36.9]} 13... a4 {[%clk
0:02:45.9]} 14. Nd2 {[%clk 0:02:36.5]} 14... Bc5 {[%clk 0:02:45.7]} 15. Nc4
{[%clk 0:02:33.1]} 15... Bxf2 {[%clk 0:02:44.6]} 16. Rd2 {[%clk 0:02:32.3]}
16... Bc5 {[%clk 0:02:42.1]} 17. Kc2 {[%clk 0:02:31.9]} 17... Ke7 {[%clk
0:02:36.5]} 18. Rg2 {[%clk 0:02:23.2]} 18... g6 {[%clk 0:02:34]} 19. Nd2 {[%clk
0:02:19.3]} 19... d5 {[%clk 0:02:26.2]} 20. Bd3 {[%clk 0:02:08.5]} 20... Rd8
{[%clk 0:01:44.4]} 21. Re1 {[%clk 0:02:06.3]} 21... Rb6 {[%clk 0:01:28.4]} 22.
b4 {[%clk 0:02:00.8]} 22... axb3+ {[%clk 0:01:27.5]} 23. Nxb3 {[%clk 0:02:00.9]}
23... Ba3 {[%clk 0:01:24.7]} 24. f4 {[%clk 0:01:50.4]} 24... c5 {[%clk
0:01:21.2]} 25. exd5 {[%clk 0:01:34.4]} 25... Rxd5 {[%clk 0:01:22.1]} 26. Bc4
{[%clk 0:01:31.9]} 26... Rf5 {[%clk 0:01:14]} 27. Rf2 {[%clk 0:01:27.1]} 27...
Rd6 {[%clk 0:01:12.8]} 28. Re5 {[%clk 0:01:25.5]} 28... Bb7 {[%clk 0:01:06.5]}
29. Rxf5 {[%clk 0:01:24.5]} 29... gxf5 {[%clk 0:00:59.8]} 30. Rd2 {[%clk
0:01:21.6]} 30... Be4+ {[%clk 0:00:41.3]} 31. Kd1 {[%clk 0:01:20.9]} 31... Bb2
{[%clk 0:00:17.7]} 32. Nxc5 {[%clk 0:01:12.1]} 32... Bxc3 {[%clk 0:00:13.8]} 33.
Rxd6 {[%clk 0:01:11.4]} 33... Kxd6 {[%clk 0:00:13.9]} 34. Nxe4+ {[%clk 0:01:11]}
34... fxe4 {[%clk 0:00:14.8]} 35. Ke2 {[%clk 0:01:04.6]} 35... Bd4 {[%clk
0:00:12.9]} 36. Bb5 {[%clk 0:01:02.7]} 36... f6 {[%clk 0:00:11.9]} 37. h3 {[%clk
0:01:02.5]} 37... e5 {[%clk 0:00:12]} 38. fxe5+ {[%clk 0:00:58.4]} 38... Kxe5
{[%clk 0:00:12.9]} 39. Bc6 {[%clk 0:00:57]} 39... f5 {[%clk 0:00:13.8]} 40. a4
{[%clk 0:00:56.4]} 40... f4 {[%clk 0:00:14.7]} 41. a5 {[%clk 0:00:56.4]} 41...
f3+ {[%clk 0:00:15.3]} 42. Kf1 {[%clk 0:00:54]} 42... Kf4 {[%clk 0:00:15.4]} 43.
a6 {[%clk 0:00:51]} 43... e3 {[%clk 0:00:15.5]} 44. Bb5 {[%clk 0:00:49.2]} 44...
Kg3 {[%clk 0:00:15.1]} 45. h4 {[%clk 0:00:39.6]} 45... Kxh4 {[%clk 0:00:15]} 46.
Bc6 {[%clk 0:00:31.3]} 46... Kg3 {[%clk 0:00:14.3]} 47. Bb5 {[%clk 0:00:28]}
47... h5 {[%clk 0:00:13.8]} 48. Bd7 {[%clk 0:00:27.7]} 48... e2+ {[%clk
0:00:13.6]} 49. Ke1 {[%clk 0:00:26.5]} 49... Bc3# {[%clk 0:00:11.9]} 0-1

[Event "Early-Titled-Tuesday-Blitz-September-12-2023"]
[Site "Chess.com"]
[Date "2023.09.12"]
[Round "8"]
[White "Arystanner"]
[Black "Agibileg"]
[Result "1-0"]
[WhiteElo "2839"]
[BlackElo "2639"]
[TimeControl "180+1"]
[EndTime "9:28:42 PDT"]
[Termination "Arystanner won by resignation"]

1. d4 {[%clk 0:03:00.9]} 1... Nf6 {[%clk 0:02:59.8]} 2. c4 {[%clk 0:03:01.7]}
2... g6 {[%clk 0:02:59.1]} 3. Nc3 {[%clk 0:03:02.2]} 3... Bg7 {[%clk 0:02:59.5]}
4. e4 {[%clk 0:03:02.9]} 4... d6 {[%clk 0:02:59.8]} 5. Be2 {[%clk 0:03:03.6]}
5... O-O {[%clk 0:03:00.1]} 6. Be3 {[%clk 0:03:04.3]} 6... e5 {[%clk 0:02:59.7]}
7. d5 {[%clk 0:03:03.5]} 7... Na6 {[%clk 0:02:59.8]} 8. h4 {[%clk 0:03:03.6]}
8... Nc5 {[%clk 0:02:58.6]} 9. Qc2 {[%clk 0:03:04.4]} 9... h5 {[%clk 0:02:54.2]}
10. b4 {[%clk 0:03:02.3]} 10... Ncxe4 {[%clk 0:02:46.5]} 11. Nxe4 {[%clk
0:03:02.5]} 11... Nxe4 {[%clk 0:02:47.4]} 12. Bd3 {[%clk 0:02:51.2]} 12... f5
{[%clk 0:02:46.3]} 13. Rd1 {[%clk 0:02:50.6]} 13... Nf6 {[%clk 0:02:43.2]} 14.
Bg5 {[%clk 0:02:51]} 14... a5 {[%clk 0:02:42.9]} 15. b5 {[%clk 0:02:49.4]} 15...
a4 {[%clk 0:02:32.1]} 16. Nh3 {[%clk 0:02:42.9]} 16... b6 {[%clk 0:02:28.9]} 17.
O-O {[%clk 0:02:41.2]} 17... Qe8 {[%clk 0:02:22.3]} 18. Rfe1 {[%clk 0:02:41.5]}
18... Nh7 {[%clk 0:02:11.8]} 19. Bc1 {[%clk 0:02:37.3]} 19... Bf6 {[%clk
0:02:10]} 20. Ng5 {[%clk 0:02:37.6]} 20... Nxg5 {[%clk 0:02:08.4]} 21. hxg5
{[%clk 0:02:38.5]} 21... Bg7 {[%clk 0:02:07.9]} 22. Bf1 {[%clk 0:02:34.5]} 22...
f4 {[%clk 0:01:50.4]} 23. Bd3 {[%clk 0:02:30.3]} 23... Bf5 {[%clk 0:01:50.8]}
24. Be4 {[%clk 0:02:31.1]} 24... Qd8 {[%clk 0:01:48.7]} 25. f3 {[%clk
0:01:57.5]} 25... Qxg5 {[%clk 0:01:48.7]} 26. Bxf5 {[%clk 0:01:58]} 26... Rxf5
{[%clk 0:01:46.1]} 27. Qf2 {[%clk 0:01:50.7]} 27... Qf6 {[%clk 0:01:31.5]} 28.
Kf1 {[%clk 0:01:46.9]} 28... g5 {[%clk 0:01:29.7]} 29. Ke2 {[%clk 0:01:47]}
29... g4 {[%clk 0:01:18.4]} 30. Kd3 {[%clk 0:01:47.3]} 30... e4+ {[%clk
0:01:18]} 31. Rxe4 {[%clk 0:01:47.7]} 31... Qc3+ {[%clk 0:01:18.1]} 32. Ke2
{[%clk 0:01:48.2]} 32... Re5 {[%clk 0:01:09.4]} 33. Rxe5 {[%clk 0:01:36.8]}
33... Qxc4+ {[%clk 0:01:09.2]} 34. Ke1 {[%clk 0:01:37]} 34... Bxe5 {[%clk
0:01:08.3]} 35. Qe2 {[%clk 0:01:14.9]} 35... Qxe2+ {[%clk 0:01:08]} 36. Kxe2
{[%clk 0:01:15.5]} 36... Ra5 {[%clk 0:01:08.3]} 37. Rh1 {[%clk 0:01:10.3]} 37...
Rxb5 {[%clk 0:01:07.1]} 38. Rxh5 {[%clk 0:01:11]} 38... gxf3+ {[%clk 0:01:07]}
39. gxf3 {[%clk 0:01:11.1]} 39... Rxd5 {[%clk 0:00:56.4]} 40. Bxf4 {[%clk
0:01:11.2]} 40... Rc5 {[%clk 0:00:52.7]} 41. Bd2 {[%clk 0:00:56.6]} 41... Rc2
{[%clk 0:00:52.5]} 42. Kd3 {[%clk 0:00:57.4]} 42... Rxa2 {[%clk 0:00:52.6]} 43.
f4 {[%clk 0:00:58.2]} 43... Bf6 {[%clk 0:00:51]} 44. Rh6 {[%clk 0:00:53.2]}
44... Rxd2+ {[%clk 0:00:48.4]} 45. Kxd2 {[%clk 0:00:53]} 45... a3 {[%clk
0:00:48.9]} 46. Rxf6 {[%clk 0:00:51.1]} 46... a2 {[%clk 0:00:12]} 47. Rg6+
{[%clk 0:00:49.5]} 47... Kf7 {[%clk 0:00:12.9]} 48. Rg1 {[%clk 0:00:50.1]} 48...
Kf6 {[%clk 0:00:13.4]} 49. Ra1 {[%clk 0:00:46.9]} 49... Kf5 {[%clk 0:00:13.5]}
50. Ke3 {[%clk 0:00:47.6]} 1-0

[Event "Early-Titled-Tuesday-Blitz-September-12-2023"]
[Site "Chess.com"]
[Date "2023.09.12"]
[Round "8"]
[White "Bilan_Danila"]
[Black "Ducke13"]
[Result "0-1"]
[WhiteElo "2573"]
[BlackElo "2485"]
[TimeControl "180+1"]
[EndTime "9:28:47 PDT"]
[Termination "Ducke13 won by resignation"]

1. d4 {[%clk 0:03:00.9]} 1... Nf6 {[%clk 0:02:57.5]} 2. Nf3 {[%clk 0:02:57.9]}
2... g6 {[%clk 0:02:57.1]} 3. Bg5 {[%clk 0:02:55.8]} 3... Bg7 {[%clk 0:02:57.3]}
4. c3 {[%clk 0:02:53.4]} 4... c5 {[%clk 0:02:56.9]} 5. e3 {[%clk 0:02:53.6]}
5... O-O {[%clk 0:02:56.1]} 6. Nbd2 {[%clk 0:02:53.9]} 6... Qb6 {[%clk
0:02:56.2]} 7. Qb3 {[%clk 0:02:50.9]} 7... Nc6 {[%clk 0:02:52.2]} 8. Qxb6 {[%clk
0:02:46.5]} 8... axb6 {[%clk 0:02:51.9]} 9. Nc4 {[%clk 0:02:47.2]} 9... cxd4
{[%clk 0:02:27.1]} 10. Nxb6 {[%clk 0:02:32.7]} 10... Ra5 {[%clk 0:02:03.9]} 11.
exd4 {[%clk 0:02:21.6]} 11... d6 {[%clk 0:01:39.7]} 12. Nxc8 {[%clk 0:02:15.4]}
12... Rxc8 {[%clk 0:01:40.6]} 13. Be2 {[%clk 0:01:53.8]} 13... e5 {[%clk
0:01:36.3]} 14. dxe5 {[%clk 0:01:52.2]} 14... dxe5 {[%clk 0:01:35.5]} 15. Nd2
{[%clk 0:01:48]} 15... e4 {[%clk 0:01:22.9]} 16. Nc4 {[%clk 0:01:46.6]} 16...
Rxg5 {[%clk 0:01:21.7]} 17. O-O {[%clk 0:01:39.9]} 17... Rd8 {[%clk 0:01:08.1]}
18. Rad1 {[%clk 0:01:35.5]} 18... Rgd5 {[%clk 0:01:07.9]} 19. Ne3 {[%clk
0:01:30.8]} 19... Rxd1 {[%clk 0:01:07.4]} 20. Rxd1 {[%clk 0:01:31.7]} 20...
Rxd1+ {[%clk 0:01:06.4]} 21. Bxd1 {[%clk 0:01:32.6]} 21... Ne5 {[%clk
0:01:01.9]} 22. b4 {[%clk 0:01:30]} 22... Nd3 {[%clk 0:00:58.1]} 23. c4 {[%clk
0:01:21.6]} 23... Nxb4 {[%clk 0:00:56]} 24. Bb3 {[%clk 0:01:18.3]} 24... Nd7
{[%clk 0:00:54.5]} 25. a3 {[%clk 0:01:17.4]} 25... Nc6 {[%clk 0:00:42.3]} 26.
Kf1 {[%clk 0:01:10.4]} 26... Nc5 {[%clk 0:00:41.1]} 27. Bc2 {[%clk 0:01:09.9]}
27... Bd4 {[%clk 0:00:34.8]} 28. Nd5 {[%clk 0:01:10.1]} 28... f5 {[%clk
0:00:24.1]} 29. h3 {[%clk 0:01:07.5]} 29... Kf7 {[%clk 0:00:24.2]} 30. h4 {[%clk
0:01:06.1]} 30... Ke6 {[%clk 0:00:24.2]} 31. Nf4+ {[%clk 0:01:06]} 31... Kd6
{[%clk 0:00:20.6]} 32. h5 {[%clk 0:01:04.8]} 32... Ne7 {[%clk 0:00:18.4]} 33. g3
{[%clk 0:01:02]} 33... Be5 {[%clk 0:00:17.9]} 34. hxg6 {[%clk 0:00:55.8]} 34...
hxg6 {[%clk 0:00:16.9]} 35. Ne2 {[%clk 0:00:53.4]} 35... Ne6 {[%clk 0:00:16.1]}
36. Ke1 {[%clk 0:00:51]} 36... Nd4 {[%clk 0:00:16.4]} 37. Nxd4 {[%clk
0:00:29.8]} 37... Bxd4 {[%clk 0:00:17.3]} 38. Ke2 {[%clk 0:00:30.7]} 38... Nc6
{[%clk 0:00:17.1]} 39. f3 {[%clk 0:00:30.7]} 39... exf3+ {[%clk 0:00:16.1]} 40.
Kxf3 {[%clk 0:00:31.6]} 40... Ke5 {[%clk 0:00:16.1]} 41. g4 {[%clk 0:00:30.9]}
41... Na5 {[%clk 0:00:16.4]} 42. gxf5 {[%clk 0:00:29]} 42... gxf5 {[%clk
0:00:15.9]} 43. Bd3 {[%clk 0:00:29.7]} 43... Nb3 {[%clk 0:00:16.1]} 44. Ke2
{[%clk 0:00:24.7]} 44... Nc1+ {[%clk 0:00:15.6]} 45. Kd2 {[%clk 0:00:25.3]}
45... Nxd3 {[%clk 0:00:15.7]} 46. Kxd3 {[%clk 0:00:26.2]} 46... f4 {[%clk
0:00:15.5]} 47. a4 {[%clk 0:00:26.6]} 47... f3 {[%clk 0:00:14.5]} 48. a5 {[%clk
0:00:27]} 48... Bc5 {[%clk 0:00:13.1]} 49. Kd2 {[%clk 0:00:26.2]} 49... Ke4
{[%clk 0:00:13.3]} 0-1

[Event "Early-Titled-Tuesday-Blitz-September-12-2023"]
[Site "Chess.com"]
[Date "2023.09.12"]
[Round "8"]
[White "Viacheslav92"]
[Black "Raskolnikov6"]
[Result "1-0"]
[WhiteElo "2505"]
[BlackElo "2275"]
[TimeControl "180+1"]
[EndTime "9:28:48 PDT"]
[Termination "Viacheslav92 won on time"]

1. e4 {[%clk 0:03:00.9]} 1... e5 {[%clk 0:02:58.2]} 2. Nf3 {[%clk 0:02:55.2]}
2... Nc6 {[%clk 0:02:58.5]} 3. Bb5 {[%clk 0:02:43.1]} 3... a6 {[%clk 0:02:56.3]}
4. Ba4 {[%clk 0:02:43.2]} 4... Nf6 {[%clk 0:02:54.5]} 5. O-O {[%clk 0:02:43.8]}
5... b5 {[%clk 0:02:53.4]} 6. Bb3 {[%clk 0:02:44.3]} 6... Bc5 {[%clk 0:02:53.5]}
7. a4 {[%clk 0:02:34.2]} 7... Rb8 {[%clk 0:02:51.8]} 8. axb5 {[%clk 0:02:33.2]}
8... axb5 {[%clk 0:02:51.6]} 9. Nxe5 {[%clk 0:02:33.8]} 9... Nxe5 {[%clk
0:02:44.4]} 10. d4 {[%clk 0:02:33.6]} 10... Bxd4 {[%clk 0:02:21.1]} 11. Qxd4
{[%clk 0:02:34.5]} 11... d6 {[%clk 0:02:21.3]} 12. f4 {[%clk 0:02:23.2]} 12...
Nc6 {[%clk 0:01:56.8]} 13. Qc3 {[%clk 0:02:21.9]} 13... Ne7 {[%clk 0:01:21.4]}
14. e5 {[%clk 0:02:19.3]} 14... dxe5 {[%clk 0:01:06.9]} 15. fxe5 {[%clk
0:02:20.2]} 15... Nfd5 {[%clk 0:01:06.9]} 16. Qg3 {[%clk 0:02:10.2]} 16... O-O
{[%clk 0:00:50.7]} 17. Nc3 {[%clk 0:02:04.2]} 17... Be6 {[%clk 0:00:47.8]} 18.
Bg5 {[%clk 0:01:59.1]} 18... Qd7 {[%clk 0:00:44.8]} 19. Nxd5 {[%clk 0:01:45.2]}
19... Nxd5 {[%clk 0:00:43.6]} 20. Bh6 {[%clk 0:01:13.9]} 20... f6 {[%clk
0:00:42.6]} 21. Bxd5 {[%clk 0:01:04.7]} 21... Bxd5 {[%clk 0:00:38.3]} 22. exf6
{[%clk 0:00:56.8]} 22... Rb6 {[%clk 0:00:20]} 23. Bxg7 {[%clk 0:00:40.7]} 23...
Re8 {[%clk 0:00:16]} 24. f7+ {[%clk 0:00:35.9]} 24... Bxf7 {[%clk 0:00:14]} 25.
Bf6+ {[%clk 0:00:31.1]} 25... Bg6 {[%clk 0:00:12.5]} 26. Rae1 {[%clk 0:00:29.3]}
26... Rxf6 {[%clk 0:00:09.2]} 27. Rxe8+ {[%clk 0:00:27.5]} 27... Qxe8 {[%clk
0:00:05.4]} 28. Rxf6 {[%clk 0:00:21.5]} 28... Qe4 {[%clk 0:00:05.3]} 29. h3
{[%clk 0:00:11.9]} 29... Qxc2 {[%clk 0:00:05.2]} 30. Qf2 {[%clk 0:00:12.6]}
30... Qc1+ {[%clk 0:00:04.2]} 31. Kh2 {[%clk 0:00:12.2]} 31... c5 {[%clk
0:00:04.3]} 32. Rf8+ {[%clk 0:00:08.9]} 32... Kg7 {[%clk 0:00:04.7]} 33. Qf6+
{[%clk 0:00:08.3]} 33... Kh6 {[%clk 0:00:04.7]} 34. Qf4+ {[%clk 0:00:08.8]}
34... Qxf4+ {[%clk 0:00:03.9]} 35. Rxf4 {[%clk 0:00:09.7]} 35... c4 {[%clk
0:00:04.6]} 36. Rd4 {[%clk 0:00:06.2]} 1-0

[Event "Early-Titled-Tuesday-Blitz-September-12-2023"]
[Site "Chess.com"]
[Date "2023.09.12"]
[Round "8"]
[White "baki83"]
[Black "bazar-wokzal"]
[Result "1-0"]
[WhiteElo "2813"]
[BlackElo "2556"]
[TimeControl "180+1"]
[EndTime "9:28:49 PDT"]
[Termination "baki83 won by resignation"]

1. d4 {[%clk 0:03:00.9]} 1... Nf6 {[%clk 0:02:57.7]} 2. Nf3 {[%clk 0:02:59.4]}
2... e6 {[%clk 0:02:57.5]} 3. Bf4 {[%clk 0:02:59.3]} 3... c5 {[%clk 0:02:57.4]}
4. e3 {[%clk 0:02:59.7]} 4... b6 {[%clk 0:02:57.9]} 5. Nbd2 {[%clk 0:02:59]}
5... Bb7 {[%clk 0:02:58.3]} 6. Bd3 {[%clk 0:02:58.9]} 6... Be7 {[%clk
0:02:58.4]} 7. O-O {[%clk 0:02:58.5]} 7... d6 {[%clk 0:02:58.9]} 8. c3 {[%clk
0:02:58.4]} 8... Nbd7 {[%clk 0:02:59.2]} 9. h3 {[%clk 0:02:58.2]} 9... h6 {[%clk
0:02:58.7]} 10. Bh2 {[%clk 0:02:57]} 10... g5 {[%clk 0:02:58.2]} 11. Nc4 {[%clk
0:02:50.1]} 11... Qc7 {[%clk 0:02:56]} 12. e4 {[%clk 0:02:37.1]} 12... g4 {[%clk
0:02:54.8]} 13. e5 {[%clk 0:02:30.9]} 13... gxf3 {[%clk 0:02:45]} 14. exd6
{[%clk 0:02:30.9]} 14... Qc6 {[%clk 0:02:37.4]} 15. dxe7 {[%clk 0:02:28.9]}
15... Rg8 {[%clk 0:02:31.6]} 16. g4 {[%clk 0:02:06]} 16... h5 {[%clk 0:02:19.2]}
17. Nd6+ {[%clk 0:01:30.8]} 17... Kxe7 {[%clk 0:02:18.5]} 18. Bb5 {[%clk
0:01:31.1]} 18... Qd5 {[%clk 0:02:16.7]} 19. dxc5 {[%clk 0:01:31.3]} 19... Nxc5
{[%clk 0:01:53.5]} 20. Nxb7 {[%clk 0:01:19.7]} 20... Nxb7 {[%clk 0:01:32]} 21.
Qxd5 {[%clk 0:01:18.6]} 21... Nxd5 {[%clk 0:01:31.8]} 22. Bc6 {[%clk 0:01:16.2]}
22... Nc5 {[%clk 0:01:06.1]} 23. Bxa8 {[%clk 0:01:15.3]} 23... Rxa8 {[%clk
0:01:05.8]} 24. gxh5 {[%clk 0:01:12.7]} 24... Rh8 {[%clk 0:01:05]} 25. c4 {[%clk
0:01:05.8]} 25... Nf6 {[%clk 0:01:00]} 26. Rad1 {[%clk 0:00:57.6]} 26... Nce4
{[%clk 0:00:57.9]} 27. Rd3 {[%clk 0:00:49.9]} 27... Rxh5 {[%clk 0:00:57.3]} 28.
Rxf3 {[%clk 0:00:47.4]} 28... Nd2 {[%clk 0:00:53.7]} 29. Ra3 {[%clk 0:00:45]}
29... Nxf1 {[%clk 0:00:52]} 30. Rxa7+ {[%clk 0:00:44.1]} 30... Kf8 {[%clk
0:00:47.7]} 31. Kxf1 {[%clk 0:00:42.1]} 31... Rxh3 {[%clk 0:00:45.2]} 32. Bd6+
{[%clk 0:00:40.4]} 32... Kg7 {[%clk 0:00:45.3]} 33. Be5 {[%clk 0:00:40.4]} 33...
Kg6 {[%clk 0:00:45.6]} 34. Bxf6 {[%clk 0:00:40.3]} 34... Kxf6 {[%clk 0:00:45.8]}
35. Rb7 {[%clk 0:00:38.3]} 35... Rh1+ {[%clk 0:00:36.3]} 36. Ke2 {[%clk
0:00:38.1]} 36... Rc1 {[%clk 0:00:36.4]} 37. Kd3 {[%clk 0:00:34.9]} 37... Rf1
{[%clk 0:00:35.9]} 38. Ke3 {[%clk 0:00:35.2]} 38... Rc1 {[%clk 0:00:35.6]} 39.
b3 {[%clk 0:00:33.9]} 39... Rc2 {[%clk 0:00:34.8]} 40. Rxb6 {[%clk 0:00:31.9]}
40... Rxa2 {[%clk 0:00:35.1]} 41. Rb7 {[%clk 0:00:32.3]} 41... Rb2 {[%clk
0:00:34.5]} 42. c5 {[%clk 0:00:31]} 42... Ke5 {[%clk 0:00:34.3]} 43. b4 {[%clk
0:00:26.5]} 43... f5 {[%clk 0:00:32.5]} 44. c6 {[%clk 0:00:21.9]} 44... Kd6
{[%clk 0:00:27.2]} 45. b5 {[%clk 0:00:22]} 45... e5 {[%clk 0:00:22]} 46. c7
{[%clk 0:00:21.2]} 46... Rb3+ {[%clk 0:00:22]} 47. Ke2 {[%clk 0:00:20.8]} 47...
Rb2+ {[%clk 0:00:19.8]} 48. Kd1 {[%clk 0:00:20.3]} 1-0

[Event "Early-Titled-Tuesday-Blitz-September-12-2023"]
[Site "Chess.com"]
[Date "2023.09.12"]
[Round "8"]
[White "El_Matador12"]
[Black "CristianS27"]
[Result "1-0"]
[WhiteElo "2618"]
[BlackElo "2512"]
[TimeControl "180+1"]
[EndTime "9:28:50 PDT"]
[Termination "El_Matador12 won by resignation"]

1. d4 {[%clk 0:03:00.8]} 1... Nf6 {[%clk 0:03:00]} 2. Bg5 {[%clk 0:03:00.7]}
2... Ne4 {[%clk 0:03:00]} 3. h4 {[%clk 0:03:00.2]} 3... c5 {[%clk 0:02:59.3]} 4.
d5 {[%clk 0:02:59.3]} 4... Qb6 {[%clk 0:02:58.5]} 5. Nd2 {[%clk 0:02:56.9]} 5...
Nxg5 {[%clk 0:02:55.6]} 6. hxg5 {[%clk 0:02:57.8]} 6... g6 {[%clk 0:02:55.1]} 7.
Rb1 {[%clk 0:02:54.2]} 7... Bg7 {[%clk 0:02:55]} 8. e4 {[%clk 0:02:50.6]} 8...
d6 {[%clk 0:02:54.7]} 9. Nc4 {[%clk 0:02:44.9]} 9... Qd8 {[%clk 0:02:48.4]} 10.
a4 {[%clk 0:02:41.4]} 10... h6 {[%clk 0:02:48.1]} 11. gxh6 {[%clk 0:02:39.6]}
11... Rxh6 {[%clk 0:02:49]} 12. Rxh6 {[%clk 0:02:38.8]} 12... Bxh6 {[%clk
0:02:49.9]} 13. e5 {[%clk 0:02:13.5]} 13... Kf8 {[%clk 0:02:28.1]} 14. Nf3
{[%clk 0:01:48.8]} 14... Bg4 {[%clk 0:02:24.2]} 15. Qd3 {[%clk 0:01:34.1]} 15...
Bf5 {[%clk 0:02:21.1]} 16. Qb3 {[%clk 0:01:30.8]} 16... Na6 {[%clk 0:02:14.1]}
17. Bd3 {[%clk 0:01:13.1]} 17... Bxd3 {[%clk 0:02:10.2]} 18. Qxd3 {[%clk
0:01:12.4]} 18... Nb4 {[%clk 0:02:09]} 19. Qe4 {[%clk 0:01:12.3]} 19... dxe5
{[%clk 0:01:56.4]} 20. Rd1 {[%clk 0:01:11]} 20... Qd7 {[%clk 0:01:38.9]} 21. c3
{[%clk 0:00:59.4]} 21... Na6 {[%clk 0:01:28.7]} 22. Nfxe5 {[%clk 0:00:59]} 22...
Qf5 {[%clk 0:01:10.3]} 23. Qxf5 {[%clk 0:00:43]} 23... gxf5 {[%clk 0:01:11.2]}
24. d6 {[%clk 0:00:42.7]} 24... exd6 {[%clk 0:01:03.8]} 25. Nxd6 {[%clk
0:00:43.6]} 25... Bf4 {[%clk 0:00:49.7]} 26. Nexf7 {[%clk 0:00:36.5]} 26... Ke7
{[%clk 0:00:48.6]} 27. g3 {[%clk 0:00:32.8]} 27... Bxd6 {[%clk 0:00:45.5]} 28.
Nxd6 {[%clk 0:00:33.7]} 28... f4 {[%clk 0:00:27.8]} 29. gxf4 {[%clk 0:00:25.5]}
29... Rh8 {[%clk 0:00:26.1]} 30. Ke2 {[%clk 0:00:19.5]} 30... b6 {[%clk
0:00:21.7]} 31. Nf5+ {[%clk 0:00:17.6]} 31... Kf6 {[%clk 0:00:20.5]} 32. Ne3
{[%clk 0:00:18.5]} 32... Nc7 {[%clk 0:00:19.9]} 33. Rd7 {[%clk 0:00:17.8]} 33...
Ne6 {[%clk 0:00:17.1]} 34. f5 {[%clk 0:00:18.2]} 34... Ng7 {[%clk 0:00:10.5]}
35. Rxa7 {[%clk 0:00:17.2]} 35... Rd8 {[%clk 0:00:05.1]} 36. Ra6 {[%clk
0:00:15.9]} 36... Rd6 {[%clk 0:00:05.4]} 37. a5 {[%clk 0:00:15.7]} 1-0

[Event "Early-Titled-Tuesday-Blitz-September-12-2023"]
[Site "Chess.com"]
[Date "2023.09.12"]
[Round "8"]
[White "M_One1126"]
[Black "Fleetw00dMac"]
[Result "1-0"]
[WhiteElo "2576"]
[BlackElo "2466"]
[TimeControl "180+1"]
[EndTime "9:28:50 PDT"]
[Termination "M_One1126 won by resignation"]

1. e4 {[%clk 0:02:46.7]} 1... e5 {[%clk 0:02:50.2]} 2. Nc3 {[%clk 0:02:46.7]}
2... Nf6 {[%clk 0:02:49.9]} 3. f4 {[%clk 0:02:46.2]} 3... d5 {[%clk 0:02:49.6]}
4. fxe5 {[%clk 0:02:46.5]} 4... Nxe4 {[%clk 0:02:49.5]} 5. Qf3 {[%clk
0:02:47.1]} 5... Nc6 {[%clk 0:02:49.2]} 6. Bb5 {[%clk 0:02:46.7]} 6... Nxc3
{[%clk 0:02:48.9]} 7. dxc3 {[%clk 0:02:46.4]} 7... Qh4+ {[%clk 0:02:48.6]} 8. g3
{[%clk 0:02:47]} 8... Qe4+ {[%clk 0:02:48.6]} 9. Be3 {[%clk 0:02:47.7]} 9... h5
{[%clk 0:02:39.6]} 10. O-O-O {[%clk 0:02:39.7]} 10... Bf5 {[%clk 0:02:10.1]} 11.
Bd3 {[%clk 0:01:57.2]} 11... Qxf3 {[%clk 0:02:08.4]} 12. Nxf3 {[%clk 0:01:58.1]}
12... Bg4 {[%clk 0:02:00.2]} 13. Rhf1 {[%clk 0:01:57.6]} 13... O-O-O {[%clk
0:01:58.9]} 14. Bf4 {[%clk 0:01:45.4]} 14... Be7 {[%clk 0:01:56.7]} 15. Rde1
{[%clk 0:01:44]} 15... Rde8 {[%clk 0:01:43.6]} 16. Nd4 {[%clk 0:01:43.9]} 16...
Nxd4 {[%clk 0:01:36]} 17. cxd4 {[%clk 0:01:44.8]} 17... h4 {[%clk 0:01:32.8]}
18. Rg1 {[%clk 0:01:17.1]} 18... Be6 {[%clk 0:01:24.7]} 19. g4 {[%clk
0:01:09.6]} 19... g5 {[%clk 0:01:23.9]} 20. Bd2 {[%clk 0:01:09.3]} 20... c5
{[%clk 0:01:20.1]} 21. c3 {[%clk 0:01:04.5]} 21... c4 {[%clk 0:01:19.4]} 22. Bf5
{[%clk 0:01:02.2]} 22... Kd7 {[%clk 0:01:16.1]} 23. h3 {[%clk 0:01:01.2]} 23...
b5 {[%clk 0:01:15.3]} 24. a3 {[%clk 0:00:58.3]} 24... a5 {[%clk 0:01:14.9]} 25.
Rgf1 {[%clk 0:00:58.5]} 25... Rb8 {[%clk 0:01:13.9]} 26. Kc2 {[%clk 0:00:47.3]}
26... b4 {[%clk 0:01:13]} 27. axb4 {[%clk 0:00:47.5]} 27... axb4 {[%clk
0:01:13.1]} 28. cxb4 {[%clk 0:00:48]} 28... Bxb4 {[%clk 0:01:11.9]} 29. Bxe6+
{[%clk 0:00:47.8]} 29... fxe6 {[%clk 0:01:11.5]} 30. Bxb4 {[%clk 0:00:27.9]}
30... Rxb4 {[%clk 0:01:09.7]} 31. Rf7+ {[%clk 0:00:28.3]} 31... Kc6 {[%clk
0:01:09.3]} 32. Re7 {[%clk 0:00:23.1]} 32... Rhb8 {[%clk 0:01:04]} 33. Rxe6+
{[%clk 0:00:23.2]} 33... Kc7 {[%clk 0:01:02.6]} 34. Rb1 {[%clk 0:00:20.9]} 34...
Rb3 {[%clk 0:01:02]} 35. Rg6 {[%clk 0:00:17.8]} 35... Rxh3 {[%clk 0:01:00]} 36.
Rf1 {[%clk 0:00:17.3]} 36... Rh2+ {[%clk 0:00:54.9]} 37. Kc1 {[%clk 0:00:17.5]}
37... Rd8 {[%clk 0:00:44.6]} 38. Rf7+ {[%clk 0:00:17.6]} 38... Rd7 {[%clk
0:00:44.7]} 39. Rxd7+ {[%clk 0:00:17.6]} 39... Kxd7 {[%clk 0:00:44.6]} 40. Rxg5
{[%clk 0:00:18.5]} 40... Rh1+ {[%clk 0:00:40.5]} 41. Kc2 {[%clk 0:00:18.1]}
41... h3 {[%clk 0:00:40.6]} 42. Rh5 {[%clk 0:00:18.3]} 42... h2 {[%clk
0:00:40.3]} 43. g5 {[%clk 0:00:18.4]} 43... c3 {[%clk 0:00:40.5]} 44. g6 {[%clk
0:00:16.4]} 44... cxb2 {[%clk 0:00:38]} 45. Kxb2 {[%clk 0:00:17.3]} 45... Kc6
{[%clk 0:00:31.4]} 46. g7 {[%clk 0:00:17.2]} 46... Rg1 {[%clk 0:00:31.6]} 47.
Rxh2 {[%clk 0:00:17.7]} 47... Rxg7 {[%clk 0:00:31.5]} 48. Kc3 {[%clk 0:00:17.9]}
48... Rg3+ {[%clk 0:00:30.5]} 49. Kb4 {[%clk 0:00:17.9]} 49... Rd3 {[%clk
0:00:26.2]} 50. Rh6+ {[%clk 0:00:17.8]} 1-0